bitfinex-derivatives/quotes_SOLF0:USTF0_20250914
["timestamp","ask_amount","ask_price","bid_price","bid_amount"]
[1757838901131,0.83317477,246.58,246.53,6.49]
[1757838901422,0.83317477,246.58,246.52,0.02663809]
[1757838901828,5.31,246.57,246.52,0.02663809]
[1757838902028,0.83317477,246.58,246.52,0.02663809]
[1757838902330,5.31,246.57,246.52,0.02663809]
[1757838902533,0.83317477,246.58,246.52,0.02663809]
[1757838902826,5.31,246.54,246.52,0.02663809]
[1757838903632,0.83317477,246.55,246.52,0.02663809]
[1757838903832,5.31,246.54,246.52,0.02663809]
[1757838904028,0.83317477,246.55,246.52,0.02663809]
[1757838904330,5.31,246.54,246.52,0.02663809]
[1757838904831,0.83317477,246.55,246.52,0.02663809]
[1757838905226,5.31,246.54,246.52,0.02663809]
[1757838905426,0.83317477,246.55,246.52,0.02663809]
[1757838906327,5.31,246.54,246.52,0.02663809]
[1757838906727,0.83317477,246.55,246.52,0.02663809]
[1757838906926,5.31,246.54,246.52,0.02663809]
[1757838907325,0.83317477,246.55,246.52,0.02663809]
[1757838907724,5.31,246.54,246.52,0.02663809]
[1757838908132,0.83317477,246.55,246.52,0.02663809]
[1757838909327,4.51193467,246.64,246.52,6.51663809]
[1757838909328,0.83317477,246.54,246.52,6.51663809]
[1757838909534,6.14317477,246.56,246.53,6.49]
[1757838909734,0.83317477,246.56,246.53,6.49]
[1757838909931,0.83317477,246.56,246.44,7.66369021]
[1757838910131,0.83317477,246.59,246.48,6.49]
[1757838910337,0.83317477,246.59,246.53,6.49]
[1757838911129,8.121866,246.58,246.52,0.03011605]
[1757838911435,5.31,246.58,246.52,0.03011605]
[1757838912537,5.31,246.58,246.52,6.52011605]
[1757838913234,5.31,246.58,246.52,0.03011605]
[1757838914039,5.31,246.58,246.52,6.52011605]
[1757838915336,5.31,246.58,246.52,0.03011605]
[1757838923636,5.31,246.68,246.53,6.49]
[1757838923942,5.31,246.65,246.53,6.49]
[1757838924141,2.81148499,246.64,246.53,6.49]
[1757838924342,5.31,246.62,246.58,6.51628751]
[1757838925338,5.31,246.62,246.59,6.49]
[1757838927744,5.31,246.65,246.58,0.02628751]
[1757838933347,2.80872051,246.64,246.58,0.02628751]
[1757838933643,5.31,246.65,246.58,0.02628751]
[1757838933842,5.31,246.63,246.58,0.02628751]
[1757838934347,2.80949733,246.62,246.58,0.02628751]
[1757838934539,5.31,246.65,246.58,0.02628751]
[1757838934738,5.31,246.63,246.58,0.02628751]
[1757838934937,5.31,246.61,246.58,0.02628751]
[1757838935347,5.31,246.65,246.58,0.02628751]
[1757838935549,5.31,246.63,246.58,0.02628751]
[1757838935750,5.31,246.61,246.58,0.02628751]
[1757838935949,5.31,246.65,246.58,0.02628751]
[1757838936150,2.80966118,246.64,246.58,0.02628751]
[1757838936443,2.80966118,246.63,246.58,0.02628751]
[1757838936647,2.80966118,246.62,246.58,0.02628751]
[1757838936849,5.31,246.64,246.58,0.02628751]
[1757838937046,5.31,246.62,246.58,0.02628751]
[1757838937246,5.31,246.64,246.58,0.02628751]
[1757838937442,5.31,246.62,246.58,0.02628751]
[1757838938048,1.30231057,246.65,246.58,0.02628751]
[1757838938250,8.1197415,246.64,246.58,0.02628751]
[1757838938451,5.31,246.62,246.58,0.02628751]
[1757838938851,1.30231057,246.65,246.58,0.02628751]
[1757838939049,8.11975658,246.64,246.58,0.02628751]
[1757838939254,5.31,246.64,246.58,0.02628751]
[1757838947057,5.31,246.73,246.59,6.52]
[1757838947249,5.31,246.71,246.59,6.52]
[1757838947456,5.31,246.69,246.59,6.52]
[1757838947951,5.31,246.69,246.63,0.02717151]
[1757838956173,5.31,246.67,246.63,0.02717151]
[1757838956468,5.31,246.73,246.63,0.02717151]
[1757838956767,5.31,246.71,246.63,0.02717151]
[1757838956969,5.31,246.69,246.63,0.02717151]
[1757838957165,2.80641038,246.68,246.63,0.02717151]
[1757838957471,5.31,246.73,246.63,0.02717151]
[1757838957671,5.31,246.71,246.63,6.77717151]
[1757838957867,2.80656531,246.7,246.63,6.77717151]
[1757838958074,2.80656531,246.7,246.63,6.75]
[1757838958374,2.80656531,246.7,246.64,0.02733186]
[1757838958869,8.10656531,246.69,246.64,0.02733186]
[1757838959175,5.3,246.69,246.64,0.02733186]
[1757838959564,1.30231057,246.7,246.64,0.02733186]
[1757838959565,5.3,246.67,246.64,0.02733186]
[1757838959769,1.30231057,246.7,246.64,0.02733186]
[1757838959970,8.10668665,246.69,246.64,0.02733186]
[1757838960168,2.80668665,246.68,246.64,0.02733186]
[1757838960369,5.3,246.66,246.64,0.02733186]
[1757838960571,5.3,246.69,246.64,0.02733186]
[1757838960771,5.3,246.67,246.64,0.02733186]
[1757838960971,1.30231057,246.7,246.64,0.02733186]
[1757838961173,8.10681322,246.69,246.64,0.02733186]
[1757838961372,2.80681322,246.68,246.64,0.02733186]
[1757838961675,5.3,246.66,246.64,0.02733186]
[1757838961879,5.3,246.69,246.64,0.02733186]
[1757838962175,5.3,246.67,246.64,0.02733186]
[1757838962375,5.3,246.69,246.64,0.02733186]
[1757838962571,1.30231057,246.7,246.64,0.02733186]
[1757838962572,5.3,246.67,246.64,0.02733186]
[1757838962775,5.3,246.69,246.64,0.02733186]
[1757838962976,1179.10096409,246.91,246.64,0.02733186]
[1757838962977,1.30231057,246.79,246.65,6.79]
[1757838963170,2.80678687,246.78,246.65,6.79]
[1757838963376,2.80678687,246.77,246.65,6.79]
[1757838963566,2.80678687,246.76,246.65,6.79]
[1757838963773,8.10678687,246.75,246.69,0.02625938]
[1757838963970,5.3,246.73,246.69,0.02625938]
[1757838964171,5.3,246.78,246.69,0.02625938]
[1757838964373,5.3,246.76,246.69,0.02625938]
[1757838964572,13.50940854,246.79,246.69,0.02625938]
[1757838964573,2.80635403,246.75,246.69,0.02625938]
[1757838964771,5.3,246.73,246.69,0.02625938]
[1757838965076,5.3,246.71,246.69,0.02625938]
[1757838965278,2.80703939,246.7,246.69,0.02625938]
[1757838965480,8.10703939,246.7,246.69,0.02625938]
[1757838967975,5.3,246.7,246.69,0.02625938]
[1757838968278,5.3,246.78,246.69,6.81625938]
[1757838969974,1.30231057,246.86,246.69,6.81625938]
[1757838970181,2.80529563,246.85,246.69,6.81625938]
[1757838970382,5.3,246.81,246.69,6.79]
[1757838970582,5.3,246.79,246.69,6.79]
[1757838970785,5.3,246.81,246.75,0.0257976]
[1757838970982,5.3,246.79,246.75,0.0257976]
[1757838971277,5.3,246.81,246.75,0.0257976]
[1757838980790,5.3,246.81,246.75,6.8157976]
[1757838981490,0.83194088,246.85,246.75,6.8157976]
[1757838981491,0.83194088,246.85,246.75,7.64773848]
[1757838981690,5.3,246.84,246.75,7.64773848]
[1757838983794,5.3,246.84,246.78,6.79]
[1757838986289,5.3,246.87,246.78,6.79]
[1757838987090,5.3,246.87,246.8,0.02780572]
[1757839002706,5.3,246.81,246.8,0.02780572]
[1757839005611,5.3,246.84,246.8,0.02780572]
[1757839005811,0.83194088,246.85,246.8,0.02780572]
[1757839006011,5.3,246.84,246.8,0.02780572]
[1757839006304,0.83194088,246.85,246.8,0.02780572]
[1757839006701,5.3,246.84,246.8,0.02780572]
[1757839007101,0.83194088,246.85,246.8,0.02780572]
[1757839007412,5.3,246.84,246.8,0.02780572]
[1757839007813,0.83194088,246.85,246.8,0.02780572]
[1757839008108,5.3,246.84,246.8,0.02780572]
[1757839009009,0.83194088,246.85,246.8,0.02780572]
[1757839010006,5.3,246.84,246.8,0.02780572]
[1757839010208,0.83194088,246.85,246.8,0.02780572]
[1757839010406,5.3,246.84,246.8,0.02780572]
[1757839010809,0.83194088,246.85,246.8,0.02780572]
[1757839011006,5.3,246.84,246.8,0.02780572]
[1757839011411,0.83194088,246.85,246.8,0.02780572]
[1757839011614,5.3,246.84,246.8,0.02780572]
[1757839011918,0.83194088,246.85,246.8,0.02780572]
[1757839012318,5.3,246.84,246.8,0.02780572]
[1757839013218,0.83194088,246.86,246.8,0.02780572]
[1757839013422,5.3,246.84,246.8,0.02780572]
[1757839013618,5.3,246.85,246.8,0.02780572]
[1757839014120,0.83194088,246.86,246.8,0.02780572]
[1757839014420,5.3,246.84,246.8,0.02780572]
[1757839014620,5.3,246.86,246.8,6.83780572]
[1757839014820,5.3,246.84,246.8,6.83780572]
[1757839015020,5.3,246.86,246.8,6.83780572]
[1757839015321,2.80217657,246.85,246.8,6.83780572]
[1757839015522,5.3,246.86,246.8,6.83780572]
[1757839015721,2.8024124,246.85,246.8,0.02780572]
[1757839015920,5.3,246.86,246.8,0.02780572]
[1757839016217,2.8024124,246.85,246.8,0.02780572]
[1757839016416,5.3,246.86,246.8,0.02780572]
[1757839016620,2.80310187,246.85,246.8,0.02780572]
[1757839016821,5.3,246.86,246.8,0.02780572]
[1757839017023,2.80310187,246.85,246.8,0.02780572]
[1757839017325,2.80343947,246.84,246.8,0.02780572]
[1757839017512,5.3,246.86,246.8,0.02780572]
[1757839017716,2.80343947,246.85,246.8,0.02780572]
[1757839017914,5.3,246.83,246.8,0.02780572]
[1757839018222,5.3,246.86,246.8,0.02780572]
[1757839018422,5.3,246.84,246.8,0.02780572]
[1757839018617,5.3,246.86,246.8,0.02780572]
[1757839018818,2.80375339,246.85,246.8,0.02780572]
[1757839019017,2.80375339,246.84,246.8,0.02780572]
[1757839019221,5.3,246.86,246.8,0.02780572]
[1757839019525,2.80410365,246.85,246.8,0.02780572]
[1757839019729,5.3,246.83,246.8,0.02780572]
[1757839019920,5.3,246.86,246.8,0.02780572]
[1757839020116,5.3,246.84,246.8,0.02780572]
[1757839020422,5.3,246.86,246.8,0.02780572]
[1757839020622,5.3,246.84,246.8,0.02780572]
[1757839020820,5.3,246.86,246.8,0.02780572]
[1757839021015,5.3,246.84,246.8,0.02780572]
[1757839021226,5.3,246.86,246.8,0.02780572]
[1757839021529,5.3,246.84,246.8,0.02780572]
[1757839021727,5.3,246.86,246.8,0.02780572]
[1757839021918,2.80483822,246.85,246.8,0.02780572]
[1757839022126,5.3,246.83,246.8,0.02780572]
[1757839022728,5.3,246.86,246.8,0.02780572]
[1757839022925,5.3,246.84,246.8,0.02780572]
[1757839023127,5.3,246.84,246.81,6.84]
[1757839023519,5.3,246.84,246.8,0.02780572]
[1757839023520,5.3,246.87,246.8,0.02780572]
[1757839023718,2.80592355,246.86,246.8,0.02780572]
[1757839023923,2.80592355,246.85,246.8,0.02780572]
[1757839024232,5.3,246.83,246.8,0.02780572]
[1757839024433,5.3,246.83,246.8,6.86780572]
[1757839025931,5.3,246.87,246.8,0.02780572]
[1757839026129,5.3,246.85,246.8,0.02780572]
[1757839026327,5.3,246.87,246.8,0.02780572]
[1757839026523,2.80762478,246.86,246.8,0.02780572]
[1757839026735,5.3,246.84,246.8,6.86780572]
[1757839027024,5.3,246.87,246.8,6.86780572]
[1757839027227,5.3,246.85,246.8,6.86780572]
[1757839027433,0.83194088,246.88,246.8,6.86780572]
[1757839027434,5.3,246.87,246.8,6.86780572]
[1757839027730,5.3,246.85,246.8,6.86780572]
[1757839027931,5.3,246.9,246.8,6.86780572]
[1757839028130,0.83194088,246.88,246.8,6.86780572]
[1757839028327,8.10762419,246.87,246.8,6.86780572]
[1757839028526,0.83194088,246.88,246.8,6.86780572]
[1757839028527,2.80762419,246.86,246.8,6.86780572]
[1757839028727,5.3,246.84,246.81,6.84]
[1757839029422,5.3,246.87,246.8,6.86780572]
[1757839029632,2.80759134,246.86,246.8,6.86780572]
[1757839029830,0.83194088,246.89,246.81,6.84]
[1757839029831,5.3,246.84,246.81,6.84]
[1757839034930,5.3,246.85,246.8,0.02780572]
[1757839035135,2.80738644,246.84,246.8,0.02780572]
[1757839035437,5.3,246.82,246.8,0.02780572]
[1757839038537,5.3,246.89,246.8,0.02780572]
[1757839038738,5.3,246.87,246.8,0.02780572]
[1757839038942,5.3,246.85,246.8,0.02780572]
[1757839039138,5.3,246.83,246.8,6.86780572]
[1757839039540,5.3,246.9,246.8,0.02780572]
[1757839039838,5.3,246.88,246.8,0.02780572]
[1757839040037,5.3,246.86,246.8,0.02780572]
[1757839040231,2.80780116,246.85,246.8,6.86780572]
[1757839040439,1.29948117,246.91,246.8,6.86780572]
[1757839040635,2.80770364,246.9,246.8,6.86780572]
[1757839040831,1.29948117,246.91,246.8,6.86780572]
[1757839040832,2.80770364,246.89,246.8,6.86780572]
[1757839041037,5.3,246.87,246.8,6.86780572]
[1757839041237,2.80770364,246.86,246.8,6.86780572]
[1757839041437,2.80770364,246.85,246.8,6.86780572]
[1757839041641,5.3,246.84,246.8,6.86780572]
[1757839041837,5.3,246.9,246.8,6.86780572]
[1757839042138,2.80767391,246.89,246.8,6.86780572]
[1757839042336,5.3,246.87,246.8,6.86780572]
[1757839042530,2.80767391,246.86,246.8,6.86780572]
[1757839042734,5.3,246.84,246.8,6.86780572]
[1757839043135,5.3,246.9,246.8,6.86780572]
[1757839043335,5.3,246.88,246.8,6.86780572]
[1757839043534,2.80767979,246.87,246.8,6.86780572]
[1757839043740,2.80767979,246.86,246.8,6.86780572]
[1757839043941,8.10767979,246.85,246.81,6.84]
[1757839044241,1.29948117,246.91,246.81,6.84]
[1757839044442,5.3,246.89,246.81,6.84]
[1757839044744,5.3,246.87,246.81,6.84]
[1757839044941,5.3,246.85,246.81,6.84]
[1757839045242,5.3,246.9,246.81,6.84]
[1757839045442,5.3,246.88,246.81,6.84]
[1757839045644,5.3,246.86,246.8,0.02780572]
[1757839045941,5.3,246.84,246.81,6.84]
[1757839046142,1.29948117,246.91,246.81,6.84]
[1757839046343,2.80764649,246.9,246.81,6.84]
[1757839046533,5.3,246.88,246.81,6.84]
[1757839046732,2.80764649,246.87,246.81,6.84]
[1757839046933,5.3,246.85,246.81,6.84]
[1757839047140,5.3,246.9,246.81,6.84]
[1757839047345,2.80765179,246.89,246.81,6.84]
[1757839047644,5.3,246.87,246.81,6.84]
[1757839047841,5.28,246.85,246.81,6.84]
[1757839048034,2.80767805,246.84,246.81,6.84]
[1757839048242,5.28,246.84,246.81,6.84]
[1757839049543,1.29948117,246.91,246.8,0.02780572]
[1757839049544,5.28,246.91,246.8,0.02780572]
[1757839049734,5.28,246.89,246.8,0.02780572]
[1757839049939,5.28,246.87,246.8,0.02780572]
[1757839050143,2.80827249,246.86,246.8,0.02780572]
[1757839050337,5.28,246.84,246.81,6.59]
[1757839051242,5.28,246.91,246.8,0.02780572]
[1757839051543,5.28,246.87,246.8,0.02780572]
[1757839051744,5.28,246.85,246.8,0.02780572]
[1757839051939,5.28,246.83,246.8,0.02780572]
[1757839052141,4.51193467,246.89,246.8,0.02780572]
[1757839052142,5.28,246.81,246.8,0.02780572]
[1757839052341,8.08881776,246.81,246.8,0.02780572]
[1757839057847,8.08881776,246.81,246.51,32.27720677]
[1757839057848,4.10829893,246.81,246.7,8.31497]
[1757839058145,5.26,246.79,246.7,8.31497]
[1757839058351,5.26,246.77,246.7,8.31497]
[1757839058552,2.80881776,246.76,246.7,8.31497]
[1757839058747,5.26,246.77,246.7,8.31497]
[1757839058947,2.79832519,246.76,246.7,8.31497]
[1757839059145,0.02574455,246.76,246.7,8.31497]
[1757839059547,5.26,246.75,246.7,8.31497]
[1757839059851,5.28574455,246.76,246.7,8.31497]
[1757839062749,0.02574455,246.76,246.7,1.72497]
[1757839063758,0.02574455,246.76,246.71,6.59]
[1757839064453,0.02574455,246.76,246.7,1.72497]
[1757839064654,0.02574455,246.76,246.71,6.59]
[1757839065054,0.02574455,246.76,246.7,1.72497]
[1757839065452,0.02574455,246.76,246.71,6.59]
[1757839066158,0.02574455,246.76,246.7,1.72497]
[1757839066554,0.02574455,246.76,246.71,6.59]
[1757839067261,0.02574455,246.76,246.7,1.72497]
[1757839067558,0.02574455,246.76,246.71,6.59]
[1757839067955,0.02574455,246.76,246.7,1.72497]
[1757839068157,0.02574455,246.76,246.71,6.59]
[1757839068959,0.02574455,246.76,246.7,1.72497]
[1757839069161,0.02574455,246.76,246.71,6.59]
[1757839073560,0.02574455,246.76,246.7,100.38497]
[1757839074263,0.02574455,246.76,246.71,6.38]
[1757839074662,0.02574455,246.76,246.7,8.10497]
[1757839084371,0.02574455,246.76,246.71,6.59]
[1757839084670,0.02574455,246.76,246.7,1.72497]
[1757839084864,0.02574455,246.76,246.71,6.59]
[1757839085071,0.02574455,246.76,246.7,1.72497]
[1757839085272,0.02574455,246.76,246.71,6.59]
[1757839085573,0.02574455,246.76,246.7,1.72497]
[1757839086467,0.02574455,246.76,246.71,6.59]
[1757839087071,0.02574455,246.76,246.7,1.72497]
[1757839087669,0.02574455,246.76,246.71,6.59]
[1757839088674,0.02574455,246.76,246.7,1.72497]
[1757839088974,0.02574455,246.76,246.71,6.59]
[1757839089170,0.02574455,246.76,246.7,1.72497]
[1757839089474,0.02574455,246.76,246.71,6.59]
[1757839091173,5.26,246.75,246.71,6.59]
[1757839091470,5.26,246.75,246.7,1.72497]
[1757839091876,2.84895928,246.74,246.7,1.72497]
[1757839092077,5.26,246.73,246.7,8.31497]
[1757839093167,5.28574455,246.76,246.7,8.31497]
[1757839094674,5.28574455,246.76,246.7,1.72497]
[1757839094879,2.85005745,246.75,246.7,1.72497]
[1757839095180,0.02574455,246.76,246.7,8.31497]
[1757839095378,8.11079193,246.75,246.7,1.72497]
[1757839095574,5.26,246.75,246.71,6.59]
[1757839095780,5.26,246.75,246.7,1.72497]
[1757839095970,5.26,246.75,246.71,6.59]
[1757839096175,2.85169766,246.74,246.71,6.59]
[1757839096370,5.26,246.75,246.71,6.59]
[1757839096575,0.02574455,246.76,246.7,1.72497]
[1757839096781,2.85161292,246.75,246.71,6.59]
[1757839096972,0.02574455,246.76,246.7,1.72497]
[1757839097177,2.85161292,246.75,246.7,1.72497]
[1757839097473,0.02574455,246.76,246.71,6.59]
[1757839097677,2.85180792,246.75,246.71,6.59]
[1757839097872,0.02574455,246.76,246.7,1.72497]
[1757839098076,2.85180792,246.75,246.71,6.59]
[1757839098279,0.02574455,246.76,246.7,1.72497]
[1757839098575,2.8520446,246.75,246.7,1.72497]
[1757839098780,0.02574455,246.76,246.7,8.31497]
[1757839098977,2.85206129,246.75,246.7,1.72497]
[1757839099276,0.02574455,246.76,246.71,6.59]
[1757839099483,2.85235122,246.75,246.7,1.72497]
[1757839099777,0.02574455,246.76,246.71,6.59]
[1757839099982,2.85235122,246.75,246.7,1.72497]
[1757839100184,0.02574455,246.76,246.7,1.72497]
[1757839100385,2.85276082,246.75,246.71,6.59]
[1757839100684,0.02574455,246.76,246.7,1.72497]
[1757839100983,2.85276082,246.75,246.71,6.59]
[1757839101284,0.02574455,246.76,246.71,6.59]
[1757839101481,2.85324287,246.75,246.7,1.72497]
[1757839101682,0.02574455,246.76,246.7,1.72497]
[1757839101876,2.85324287,246.75,246.7,1.72497]
[1757839102178,0.02574455,246.76,246.71,6.59]
[1757839102380,2.8538052,246.75,246.71,6.59]
[1757839102683,0.02574455,246.76,246.71,6.59]
[1757839102884,2.8537885,246.75,246.7,1.72497]
[1757839103185,0.02574455,246.76,246.7,1.72497]
[1757839103379,2.85382901,246.75,246.71,6.59]
[1757839103579,0.02574455,246.76,246.7,1.72497]
[1757839103775,2.85382901,246.75,246.71,6.59]
[1757839103981,0.02574455,246.76,246.71,6.59]
[1757839104181,0.02574455,246.76,246.7,1.72497]
[1757839104182,2.85382901,246.75,246.7,1.72497]
[1757839104381,0.02574455,246.76,246.7,1.72497]
[1757839104684,2.8538707,246.75,246.7,1.72497]
[1757839104983,5.26,246.75,246.71,6.59]
[1757839105686,5.26,246.75,246.7,1.72497]
[1757839106282,5.26,246.75,246.71,6.59]
[1757839106878,5.26,246.75,246.7,1.72497]
[1757839107080,3.6863081,246.74,246.7,1.72497]
[1757839107286,5.26,246.72,246.7,1.72497]
[1757839107481,8.11406656,246.71,246.7,1.72497]
[1757839118001,2.85406656,246.71,246.7,1.72497]
[1757839118500,8.13406656,246.71,246.7,1.72497]
[1757839128804,2.85406656,246.71,246.7,1.72497]
[1757839129107,8.13406656,246.71,246.7,1.72497]
[1757839140003,20.22967864,246.71,246.7,1.72497]
[1757839140204,20.22967864,246.71,246.7,1.69291743]
[1757839148513,20.22967864,246.71,246.55,0.83224154]
[1757839148514,3.57,246.7,246.59,6.83]
[1757839148709,0.83224154,246.64,246.51,6.83]
[1757839148909,2.85406656,246.63,246.51,6.83]
[1757839149113,0.83224154,246.64,246.51,6.83]
[1757839149314,0.02738766,246.6,246.51,6.83]
[1757839149617,0.02738766,246.6,246.51,7.66224154]
[1757839151715,16.01415905,246.71,246.57,0.83224154]
[1757839151918,2.84647295,246.7,246.58,6.83]
[1757839152113,2.84647295,246.69,246.58,6.83]
[1757839152324,2.84647295,246.68,246.58,6.83]
[1757839152620,16.84640059,246.71,246.58,6.83]
[1757839152818,2.84662339,246.7,246.58,6.83]
[1757839153118,2.84662339,246.69,246.63,6.83]
[1757839153320,2.84662339,246.68,246.62,0.02968686]
[1757839153520,16.84640059,246.71,246.63,6.83]
[1757839153820,2.84670908,246.7,246.63,6.83]
[1757839154019,2.84670908,246.69,246.63,6.83]
[1757839154321,2.84670908,246.68,246.63,6.83]
[1757839154525,2.84689605,246.67,246.63,6.83]
[1757839154818,3.6,246.7,246.63,6.83]
[1757839155021,2.84692938,246.69,246.63,6.83]
[1757839155218,2.84692938,246.68,246.63,6.83]
[1757839155416,6.44692938,246.67,246.62,0.02968686]
[1757839155718,3.6,246.67,246.63,6.83]
[1757839155919,3.6,246.67,246.62,0.02968686]
[1757839156322,3.6,246.67,246.63,6.83]
[1757839156722,3.6,246.67,246.62,0.02968686]
[1757839157117,3.6,246.67,246.63,6.83]
[1757839157322,2.84712993,246.66,246.62,0.02968686]
[1757839157519,3.6,246.67,246.62,0.02968686]
[1757839157821,0.83224154,246.65,246.62,0.02968686]
[1757839158025,3.6,246.64,246.62,0.02968686]
[1757839158223,4.43224154,246.68,246.62,0.02968686]
[1757839158417,2.8471725,246.67,246.62,0.02968686]
[1757839158617,2.8471725,246.66,246.62,0.02968686]
[1757839158925,3.6,246.73,246.63,6.83]
[1757839159120,2.84693951,246.72,246.63,6.83]
[1757839159425,6.44693951,246.71,246.63,6.83]
[1757839159620,2.84693951,246.7,246.63,6.83]
[1757839159822,2.84693951,246.69,246.63,6.83]
[1757839160022,3.6,246.71,246.63,6.83]
[1757839160221,2.84684867,246.7,246.63,6.83]
[1757839160526,2.84684867,246.69,246.63,6.83]
[1757839160721,3.6,246.71,246.63,6.83]
[1757839160921,2.84684549,246.7,246.63,6.83]
[1757839161122,2.84684549,246.69,246.63,6.83]
[1757839161319,3.6,246.71,246.63,6.83]
[1757839161624,2.84684231,246.7,246.63,6.83]
[1757839161824,2.84684231,246.69,246.63,6.83]
[1757839162024,3.6,246.71,246.63,6.83]
[1757839162224,2.84690221,246.7,246.63,6.83]
[1757839162424,2.84690221,246.69,246.63,6.83]
[1757839162626,3.6,246.71,246.63,6.83]
[1757839162829,2.84691404,246.7,246.63,6.83]
[1757839163027,2.84691404,246.69,246.63,6.83]
[1757839163326,3.6,246.71,246.63,6.83]
[1757839163527,2.84692298,246.7,246.63,6.83]
[1757839163727,2.84692298,246.69,246.63,6.83]
[1757839163927,3.6,246.71,246.63,6.83]
[1757839164226,2.84692284,246.7,246.63,6.83]
[1757839164426,2.84692284,246.69,246.63,6.83]
[1757839164628,3.6,246.71,246.63,6.83]
[1757839164928,2.84692661,246.7,246.63,6.83]
[1757839165129,2.84692661,246.69,246.63,6.83]
[1757839165327,3.6,246.71,246.63,6.83]
[1757839165628,2.84693413,246.7,246.63,6.83]
[1757839165826,2.84693413,246.69,246.63,6.83]
[1757839166028,3.6,246.71,246.63,6.83]
[1757839166227,2.84693413,246.7,246.63,6.83]
[1757839166427,2.84693413,246.69,246.63,6.83]
[1757839166627,3.6,246.71,246.63,6.83]
[1757839166830,2.84692316,246.7,246.63,6.83]
[1757839167127,2.84692316,246.69,246.63,6.83]
[1757839167326,2.84692316,246.68,246.62,0.02968686]
[1757839167529,3.6,246.71,246.63,6.83]
[1757839167722,2.84701757,246.7,246.63,6.83]
[1757839167920,2.84701757,246.69,246.63,6.83]
[1757839168228,2.84701757,246.68,246.62,0.02968686]
[1757839168427,3.6,246.7,246.63,6.79]
[1757839168629,2.84706002,246.69,246.63,6.79]
[1757839168831,2.84706002,246.68,246.63,6.79]
[1757839169033,3.6,246.7,246.63,6.79]
[1757839169228,2.84706002,246.69,246.63,6.79]
[1757839169425,2.84706002,246.68,246.62,0.02968686]
[1757839169625,3.6,246.7,246.63,6.79]
[1757839169830,2.84709351,246.69,246.63,6.79]
[1757839170136,12.37895885,246.73,246.63,6.79]
[1757839170336,2.84654775,246.72,246.63,6.79]
[1757839170536,2.84654775,246.71,246.63,6.79]
[1757839170737,4.90144487,246.75,246.63,6.79]
[1757839170934,2.84654716,246.74,246.63,6.79]
[1757839171135,2.84654716,246.73,246.63,6.79]
[1757839171334,2.84654716,246.72,246.63,6.79]
[1757839171538,2.84654716,246.71,246.63,6.79]
[1757839171737,4.90144487,246.75,246.63,6.79]
[1757839171927,3.6,246.73,246.63,6.79]
[1757839172133,2.84639333,246.72,246.63,6.79]
[1757839172334,2.84639333,246.71,246.63,6.79]
[1757839172534,3.6,246.73,246.63,6.79]
[1757839172836,2.84624998,246.72,246.63,6.79]
[1757839173135,2.84624998,246.71,246.63,6.79]
[1757839173337,3.6,246.73,246.63,6.79]
[1757839173532,2.84617291,246.72,246.63,6.79]
[1757839173737,2.84617291,246.71,246.63,6.79]
[1757839174030,2.84617291,246.7,246.63,6.79]
[1757839174235,3.6,246.73,246.63,6.79]
[1757839174438,2.84550623,246.72,246.63,6.79]
[1757839174638,2.84550623,246.71,246.63,6.79]
[1757839174934,2.84550623,246.7,246.63,6.79]
[1757839175138,3.6,246.73,246.63,6.79]
[1757839175333,2.8454491,246.72,246.63,6.79]
[1757839175534,2.8454491,246.71,246.63,6.79]
[1757839175733,2.8454491,246.7,246.63,6.79]
[1757839175940,3.6,246.73,246.63,6.79]
[1757839176141,2.8454491,246.72,246.63,6.79]
[1757839176336,3.6,246.7,246.63,6.79]
[1757839176641,2.8454491,246.69,246.63,6.79]